Cogmind - Beta 13 @@@ ROGUE MODE // 2024.05.05 @ 21:17:59 Player: NikedNOGsing_in_can't Result: Destroyed by G-67 Veteran with Field Laser Performance ------------- Evolutions (5) 2500 Regions Visited (23) 4600 Robots Destroyed (262) 1310 Value Destroyed (8901) 8901 Prototype IDs (27) 540 Alien Tech Used (0) 0 Bonus (5604) 5604 TOTAL SCORE: 23455 Bonus ------- High Alert Combat Kills 1154 Follower Combat Kills 1822 Entered Garrisons 600 Used RIF Installer 2000 Entered DSFs 500 Met Data Miner 300 MAIN.C Attacked Warlord 500 Friendly Fire -1272 Cogmind --------- Core Integrity 0/1000 Matter 37/300 Energy 100/100 System Corruption 0% Temperature Cool (27) Movement Core (50) Location -4/Proximity Caves Parts ------- > --- POWER (1) -------- (None) > --- PROPULSION (6) --- (None) > --- UTILITY (7) ------ (None) > --- WEAPON (3) ------- (None) > --- INVENTORY (5) ---- Heavy Armor Plating Relay Coupler [Sentry] (23) Heavy Linear Accelerator Peak State ------------ > --- POWER ------------ Antimatter Reactor > --- PROPULSION ------- Heavy Treads Biometal Heavy Treads Advanced Heavy Siege Treads > --- UTILITY ---------- Huge Storage Unit Precision Energy Filter Improved Core Shielding Relay Coupler [NC] Relay Coupler [Swarmer] Relay Coupler [Grunt] Relay Coupler [Sentry] > --- WEAPON ----------- Smartbomb Launcher Shock Maul > --- INVENTORY -------- F-cell Engine Heavy Treads Improved Cryofiber Web Improved Cooling System Enhanced Optical Array Kinecellerator Heavy Armor Plating Relay Coupler [NC] Relay Coupler [Cutter] Relay Coupler [Brawler] Relay Coupler [Sentry] Relay Coupler [Sentry] Nova Cannon Coil Gun Heavy Machine Gun KE Penetrator Enhanced Gauss Cannon Heavy Linear Accelerator Heavy Rocket Launcher Advanced Remote Datajack Plasma Cutter Improved Plasma Cutter [Rating: 109] Favorites ----------- Power Fission Core Engine Heavy Ion Engine Power Core Fission Core Reactor Antimatter Reactor Propulsion Advanced Treads Treads Advanced Treads Wheel Armored Wheel Hover Unit Backup Propulsion III Flight Unit Improved Flight Unit Utility Huge Storage Unit Device Seismic Detector Storage Huge Storage Unit Processor Core Analyzer Hackware Relay Coupler [Grunt] Protection Medium Armor Plating Weapon Coil Gun Energy Gun Advanced Beam Rifle Energy Cannon Advanced Beam Cannon Ballistic Gun Coil Gun Ballistic Cannon Heavy Linear Accelerator Launcher Heavy Rocket Launcher Special Weapon Remote Datajack Impact Weapon Shock Maul Special Melee Weapon Datajack Build | -11 -10 -10 -9 -9 -9 -8 -8 -8 -8 -7 -7 -6 -6 -6 -6 -5 -5 -5 -5 -5 -5 -5 -4 ------- Run | Yrd Mat Min Mat Sto Gar Mat Gar Mat Gar Fac DSF Fac Low Low Dat Pro Fac Was Fac Upp Upp War Pro Slots Evolved 10 | . . . 2 . . 2 . . . 2 . 2 . . . . 2 . . . . . . Power . | . . . . . . . . . . . . . . . . . . . . . . . . Propulsion 4 | . . . 1 . . 1 . . . . . . . . . . 2 . . . . . . Utility 5 | . . . 1 . . 1 . . . 1 . 2 . . . . . . . . . . . Weapon 1 | . . . . . . . . . . 1 . . . . . . . . . . . . . Parts Attached 370 | 7 13 1 30 24 41 61 32 11 28 4 11 24 17 1 . 8 19 9 5 2 . 2 20 Power 16 | 1 1 . 1 3 1 2 . . 2 . . 1 . . . 1 2 1 . . . . . Engine 9 | 1 1 . 1 3 1 . . . 1 . . . . . . . 1 . . . . . . Core 6 | . . . . . . 2 . . 1 . . 1 . . . 1 1 . . . . . . Reactor 1 | . . . . . . . . . . . . . . . . . . 1 . . . . . Propulsion 69 | 2 6 . 8 6 8 11 1 4 2 1 . 6 4 . . . 4 3 1 . . . 2 Treads 51 | 2 3 . 7 5 6 9 1 . 2 . . 5 2 . . . 3 3 1 . . . 2 Leg . | . . . . . . . . . . . . . . . . . . . . . . . . Wheel 17 | . 3 . 1 . 2 2 . 4 . 1 . 1 2 . . . 1 . . . . . . Hover . | . . . . . . . . . . . . . . . . . . . . . . . . Flight 1 | . . . . 1 . . . . . . . . . . . . . . . . . . . Utility 96 | 2 3 . 3 7 10 17 7 3 4 2 3 7 5 . . 3 5 2 3 1 . 1 8 Device 28 | 1 . . . . 1 2 . 1 1 2 2 2 5 . . . 2 2 1 . . 1 5 Storage 4 | 1 1 . . . 1 . . . . . . . . . . . . . 1 . . . . Processor 3 | . 1 . . . . 1 . . . . . 1 . . . . . . . . . . . Hackware 25 | . . . . 2 3 5 4 1 1 . 1 3 . . . 2 2 . . . . . 1 Protection 36 | . 1 . 3 5 5 9 3 1 2 . . 1 . . . 1 1 . 1 1 . . 2 Artifact . | . . . . . . . . . . . . . . . . . . . . . . . . Weapon 189 | 2 3 1 18 8 22 31 24 4 20 1 8 10 8 1 . 4 8 3 1 1 . 1 10 Energy Gun 15 | . . . 2 . . 6 2 1 4 . . . . . . . . . . . . . . Energy Cannon 14 | . . . 3 1 4 3 . . . . . 1 . . . . . 1 . . . 1 . Ballistic Gun 66 | 2 2 1 8 3 9 7 10 1 3 1 4 4 2 . . 1 3 . . . . . 5 Ballistic Cannon 11 | . . . . . . 3 1 . 2 . 1 . . . . . 2 . 1 . . . 1 Launcher 27 | . . . 3 . 2 4 3 . 6 . 1 . 3 . . 2 . 1 . . . . 2 Special Weapon 26 | . 1 . 1 1 4 . 5 . 2 . 1 2 1 1 . 1 3 . . 1 . . 2 Impact Weapon 16 | . . . 1 3 . 1 1 1 2 . 1 3 2 . . . . 1 . . . . . Slashing Weapon . | . . . . . . . . . . . . . . . . . . . . . . . . Piercing Weapon . | . . . . . . . . . . . . . . . . . . . . . . . . Special Melee Weapon 14 | . . . . . 3 7 2 1 1 . . . . . . . . . . . . . . Unidentified Prototypes 13 | . 1 . 3 4 . 2 . . . . . 1 . . . . 1 1 . . . . . Parts Lost 72 | . . . 3 4 4 8 1 . 10 . . 1 7 . . 4 9 . . . . 1 20 Power 7 | . . . . . . 1 . . 2 . . . . . . 1 1 . . . . 1 1 Propulsion 26 | . . . 1 2 3 4 . . 3 . . . 3 . . . 6 . . . . . 4 Utility 26 | . . . 1 2 1 3 . . 3 . . 1 3 . . 3 1 . . . . . 8 Weapon 13 | . . . 1 . . . 1 . 2 . . . 1 . . . 1 . . . . . 7 Highest Loss Streak 13 | . . . 2 2 3 3 1 . 5 . . 1 4 . . 3 7 . . . . 1 13 To Critical Strikes 1 | . . . . 1 . . . . . . . . . . . . . . . . . . . Average Slot Usage (%) 93 | . 100 100 99 99 99 96 94 93 81 70 99 99 97 100 100 96 90 76 76 76 76 76 70 Engine 5 | . 14 14 11 11 11 6 . . 5 7 7 . . . . . . 2 . . . . 4 Core 2 | . . . . . . 2 9 9 2 . . 5 6 6 6 4 4 . . . . . . Treads 22 | . 15 14 27 32 29 30 35 34 7 15 15 23 17 13 13 13 21 11 17 17 17 17 16 Wheel 5 | . 12 14 5 . 3 2 . 1 25 8 15 2 8 13 13 13 6 1 . . . . . Device 6 | . 1 . . . . . . 3 3 12 29 17 19 20 20 14 5 5 5 5 5 5 10 Storage 8 | . 14 14 11 11 11 9 9 9 9 7 7 6 6 6 6 6 5 5 5 5 5 5 4 Processor 4 | . 9 14 2 . . 8 4 . . . . 5 6 6 6 6 5 5 . . . . . Hackware 9 | . . . . 4 5 7 9 12 4 . . 8 13 13 13 12 21 23 23 23 23 23 16 Protection 7 | . 2 . 19 17 15 9 8 5 5 . . 5 . . . 4 . . 4 5 5 4 3 Energy Cannon 2 | . . . 5 3 9 5 . . . . . . . . . . . . . . . . . Ballistic Gun 9 | . 24 27 15 15 4 . 6 12 4 1 10 14 11 6 6 11 7 3 . . . . 1 Ballistic Cannon 1 | . . . . . . 3 . . . . . . . . . . 2 1 1 5 5 5 4 Special Weapon 1 | . 3 . . . 3 . 1 1 1 . 6 1 . 5 6 3 3 . . 3 5 4 3 Impact Weapon 1 | . . . . 2 . . . 2 4 7 2 2 3 6 6 1 . 2 5 1 . . . Naked Turns 4 | . . . . . . . . . . . . . . . . . . . . . . . 4 Heaviest Build 144 | 13 95 92 99 109 109 115 114 113 123 103 117 124 118 106 104 111 112 116 129 137 137 144 128 Greatest Support 225 | 40 46 16 69 66 64 88 88 88 48 22 42 90 90 24 24 40 116 225 225 225 225 225 225 Greatest Overweight (x) 9 | . 5 5 6 2 6 9 1 7 7 8 5 5 9 4 4 4 9 8 . . 1 . 3 Average Overweight (x) 2 | . 3 5 3 1 2 1 1 1 3 6 4 2 3 4 4 3 2 2 . . . . . Largest Inventory Capacity 25 | 8 25 25 25 25 25 25 25 25 25 25 25 25 25 25 25 25 25 25 25 25 25 25 25 Average Capacity 24 | 7 24 25 25 25 25 25 25 25 25 25 25 25 25 25 25 25 25 25 25 25 25 25 24 Most Carried 25 | 4 18 21 25 25 25 25 25 25 25 24 25 25 25 24 24 25 25 25 25 25 25 25 25 Average Carried 23 | 1 14 20 23 24 24 24 24 24 22 23 24 24 23 23 24 22 24 24 24 25 25 25 23 Final Capacity 25 | 8 25 25 25 25 25 25 25 25 25 25 25 25 25 25 25 25 25 25 25 25 25 25 5 Final Carried 25 | 4 18 21 25 25 25 25 25 25 23 24 25 25 23 24 24 24 22 25 25 25 25 25 5 Class Distribution -------------------- 25% | Bothacker-Mutant 24% | Mutant 23% | Botlord-Mutant 19% | Botlord-Gunner 4% | Botlord-Tank Dominant Class ---------------- Mutant | -10/Materials Mutant | -10/Mines Mutant | -9/Materials Mutant | -9/Storage Bothacker-Mutant | -9/Garrison Bothacker-Mutant | -8/Materials Bothacker-Mutant | -8/Garrison Bothacker-Mutant | -8/Materials Botlord-Mutant | -8/Garrison Botlord-Mutant | -7/Factory Botlord-Gunner | -7/DSF Botlord-Gunner | -6/Factory Botlord-Mutant | -6/Lower Caves Botlord-Mutant | -6/Lower Caves Botlord-Mutant | -6/Data Miner Botlord-Gunner | -5/Proximity Caves Botlord-Gunner | -5/Factory Botlord-Mutant | -5/Waste Botlord-Mutant | -5/Factory Botlord-Tank | -5/Upper Caves Botlord-Tank | -5/Upper Caves Botlord-Tank | -5/Warlord Botlord-Gunner | -4/Proximity Caves Resources | -11 -10 -10 -9 -9 -9 -8 -8 -8 -8 -7 -7 -6 -6 -6 -6 -5 -5 -5 -5 -5 -5 -5 -4 ----------- Run | Yrd Mat Min Mat Sto Gar Mat Gar Mat Gar Fac DSF Fac Low Low Dat Pro Fac Was Fac Upp Upp War Pro Matter Collected 8179 | 296 299 213 544 565 532 1073 569 122 619 18 264 366 379 34 . 174 302 323 271 345 127 121 623 Remotely 1064 | . . . . . . . . . . . . . . . . . . . 239 345 124 116 240 Salvage Created 9764 | 140 491 193 725 1225 755 1431 749 122 867 18 195 612 223 190 . 170 270 61 629 111 78 194 315 Parts 512 | 8 33 5 45 87 39 68 48 7 42 5 12 18 10 2 . 13 20 . 24 1 4 8 13 Haulers Intercepted 16 | . 2 . 4 5 . 2 . 1 . . 1 . . . . . 1 . . . . . . Recyclers Shooed 3 | . 1 1 . 1 . . . . . . . . . . . . . . . . . . . Parts Field Recycled . | . . . . . . . . . . . . . . . . . . . . . . . . Retrieved Matter . | . . . . . . . . . . . . . . . . . . . . . . . . Parts Self-Destructed 62 | . . . . . . . . . . . . . 5 3 . 18 . . . 18 4 . 14 Prevented 12 | . . . . . . . . . . . . . 4 1 . 7 . . . . . . . Kills | -11 -10 -10 -9 -9 -9 -8 -8 -8 -8 -7 -7 -6 -6 -6 -6 -5 -5 -5 -5 -5 -5 -5 -4 ------- Run | Yrd Mat Min Mat Sto Gar Mat Gar Mat Gar Fac DSF Fac Low Low Dat Pro Fac Was Fac Upp Upp War Pro Combat Hostiles Destroyed 206 | . 10 . 10 24 15 31 24 2 23 . 4 6 6 1 . 7 9 . 13 4 2 4 11 Melee 5 | . . . . . . . . . 1 . . 1 1 1 . . . . 1 . . . . Guns 90 | . 10 . 2 21 5 9 18 2 9 . 3 3 1 . . 2 3 . . . . . 2 Cannons 59 | . . . 5 3 10 15 2 . 2 . 1 . . . . . 1 . 3 4 2 3 8 AOE 45 | . . . 2 . . 7 4 . 8 . . . 4 . . 5 5 . 9 . . . 1 Classes Destroyed 22 | 3 5 . 2 2 . 2 1 1 . . . 1 . . . 1 1 . 1 1 . 1 . Worker 10 | 1 . 1 2 2 . 4 . . . . . . . . . . . . . . . . . Builder 3 | . 1 . . . . 1 . . . . . 1 . . . . . . . . . . . Tunneler 6 | 2 . . 1 . . 1 . . . 1 . . . . . . . . 1 . . . . Hauler 16 | . 2 . 4 5 . 2 . 1 . . 1 . . . . . 1 . . . . . . Recycler 8 | 1 1 1 . 1 . 1 . . . . . 2 . . . . . . 1 . . . . Minesweeper 1 | . . . . . . . . . . . . . . . . 1 . . . . . . . Operator 2 | . . . 1 . . 1 . . . . . . . . . . . . . . . . . Watcher 9 | . 1 . 2 2 . 1 . . . . . 1 . . . . . . 2 . . . . Swarmer 55 | . 6 . 2 7 2 4 6 . 7 . 3 . . 1 . 6 6 . 2 1 . . 2 Cutter 6 | . . . . . . . 3 . 3 . . . . . . . . . . . . . . Grunt 77 | . 4 . 4 8 11 17 10 . 9 . . . 2 . . 1 . . 4 1 . . 6 Brawler 4 | . . . . 1 . . . . 2 . . . . . . . . . 1 . . . . Duelist 5 | . . . . 1 . 1 . . 1 . . . 1 . . . . . 1 . . . . Protector 1 | . . . . . . . . . . . . . . . . . . . 1 . . . . Sentry 31 | . . . 4 7 2 6 5 1 1 . . 1 . . . . . . 1 1 1 . 1 Demolisher 1 | . . . . . . . . . . . . . . . . . 1 . . . . . . Specialist 3 | . . . . . . 2 . . . . 1 . . . . . . . . . . . . Hunter 10 | . . . . . . . . 1 . . . 3 3 . . . 2 . 1 . . . . Programmer 5 | . . . . . . . . . . . . 2 . . . . . . 1 . 1 . 1 Heavy 1 | . . . . . . 1 . . . . . . . . . . . . . . . . . Behemoth 1 | . . . . . . . . . . . . . . . . . . . . . . . 1 Butcher 1 | . . . . . . . . . . . . . . . . . . . . . . 1 . Bouncer 1 | . . . . . . . . . . . . . . . . . . . . . . 1 . Martyr 1 | . . . . . . . . . . . . . . . . . . . 1 . . . . Marauder 2 | . . . . . . . . . . . . . . . . . . . . . . 2 . Mutant 1 | . . . . . . . . . . . . . . . . . . . . 1 . . . Best Kill Streak 10 | 3 5 2 3 6 4 7 5 2 10 1 3 3 3 1 . 5 5 . 4 2 1 4 4 Combat Bots Only 10 | . 4 . 2 6 4 7 5 2 10 . 3 2 3 1 . 5 5 . 4 2 1 4 4 Max Kills in Single Turn 5 | 1 1 2 2 2 1 2 2 1 3 1 1 1 2 1 . 5 5 . 4 1 1 1 1 Gunslinging 1 | . . . . 1 . . . . . . . . . . . . . . . . . . . Exploded 5 | . . . 2 . . 2 2 . 3 . . . 1 . . 5 5 . 3 . . . 1 Melee 1 | . . . . . . . . . 1 . . 1 1 1 . . . . 1 . . . . Uniques/NPCs Destroyed 1 | . . 1 . . . . . . . . . . . . . . . . . . . . . YI-UF0 (-10/Mines) Combat | -11 -10 -10 -9 -9 -9 -8 -8 -8 -8 -7 -7 -6 -6 -6 -6 -5 -5 -5 -5 -5 -5 -5 -4 -------- Run | Yrd Mat Min Mat Sto Gar Mat Gar Mat Gar Fac DSF Fac Low Low Dat Pro Fac Was Fac Upp Upp War Pro Hostile Shots Fired 1327 | . 69 . 55 127 78 151 91 16 129 . 27 109 91 2 . 33 69 . 16 20 16 45 183 Missed 363 | . 18 . 7 23 28 44 30 3 28 . 16 31 32 2 . 8 20 . 4 9 6 21 33 Damage Taken 17760 | . 536 . 614 1359 1011 2000 988 202 1632 . 168 966 867 . . 351 1301 . 364 302 222 1148 3729 Core 1889 | . 133 . 41 91 110 123 107 . 122 . 39 29 66 . . 16 149 . 12 80 24 224 523 Absorbed by Shields . | . . . . . . . . . . . . . . . . . . . . . . . . Reduced by Siege Mode 181 | . . . . . . . . . . . . . . . . . . . . . . . 181 Redirected to Shielding 116 | . . . 2 20 . . . . . . . . . . . 69 . . 5 20 . . . Regen/Repaired (Parts) 2919 | . . . . . . 174 . . . . . . . . . . . 727 305 159 158 861 535 Core Remaining (%) 66 | 100 . 46 . . 39 . . . 36 . 94 . . . . 86 . . . . . . . Volleys Fired 753 | 13 56 11 55 73 64 109 57 12 59 1 17 18 15 5 . 31 35 2 15 23 8 8 66 Largest 3 | 2 2 2 2 2 2 2 2 2 2 1 2 3 3 1 . 2 3 2 1 1 1 2 3 Hottest 196 | 40 100 40 98 91 91 105 105 84 84 23 60 83 112 30 . 63 117 80 83 83 83 196 126 Shots Fired 1251 | 26 107 22 109 141 100 179 92 23 87 1 28 38 23 5 . 42 57 6 15 24 8 14 104 Gun 791 | 26 102 22 83 115 38 66 76 23 67 1 22 35 6 1 . 27 27 6 . . . . 48 Cannon 357 | . . . 24 26 62 107 13 . 13 . 3 . . . . . 16 . 7 14 8 14 50 Launcher 44 | . . . 2 . . 6 3 . 7 . 1 . 13 . . 1 . . 8 . . . 3 Special 59 | . 5 . . . . . . . . . 2 3 4 4 . 14 14 . . 10 . . 3 Kinetic 865 | 26 102 22 83 115 38 79 55 22 49 1 25 35 6 1 . 27 43 1 7 14 8 8 98 Thermal 288 | . 5 . 24 26 62 94 34 1 31 . . . . . . . . 5 . . . 6 . Explosive 41 | . . . 2 . . 6 3 . 7 . . . 11 . . 1 . . 8 . . . 3 Electromagnetic 3 | . . . . . . . . . . . 1 . 2 . . . . . . . . . . Robot Hit Streak 25 | 7 8 9 11 19 25 16 11 16 8 4 11 16 4 2 . 7 9 2 10 3 3 8 12 Robot Miss Streak 6 | 1 4 1 4 4 2 6 4 3 5 . 3 1 3 2 . 4 4 2 1 5 3 1 5 Penetration Max 1 | . . . . . . . . . . . . 1 1 . . . . . . . . . 1 Secondary Targets 11 | . 1 . 1 2 . 2 1 . 2 . 2 . . . . . . . . . . . . Max Gunslinging Chain 1 | . 1 . 1 1 . 1 1 . 1 . 1 . . . . . . . . . . . . Shots Hit Robots 833 | 17 60 18 70 100 51 141 62 23 56 1 17 36 13 6 . 23 31 4 9 11 4 11 69 Core Hits 400 | 8 23 9 29 45 20 63 44 6 31 1 9 12 13 2 . 12 16 3 23 2 2 5 22 Critical Kills 6 | . . . 1 . . . . . 1 . 1 . . 1 . . . . 1 . . 1 . Critical Parts Destroyed 18 | . 1 . 1 2 . 1 . 1 4 . . 6 1 . . 1 . . . . . . . Critical Strikes 37 | . 1 . 2 2 . 2 1 1 6 . 1 6 1 2 . 1 2 . 1 1 . 2 5 Burn 1 | . . . . . . . 1 . . . . . . . . . . . . . . . . Meltdown 2 | . . . 1 . . . . . . . . . . . . . . . . . . 1 . Destroy 5 | . 1 . . . . . . 1 . . 1 1 . . . 1 . . . . . . . Blast 11 | . . . . . . 1 . . 1 . . . . . . . 2 . . 1 . 1 5 Smash 18 | . . . 1 2 . 1 . . 5 . . 5 1 2 . . . . 1 . . . . Melee Attacks 116 | . . . 7 8 6 20 5 5 23 2 1 24 4 6 . . . 1 3 1 . . . Impact 85 | . . . 7 8 . 2 1 2 23 2 1 24 4 6 . . . 1 3 1 . . . Slashing . | . . . . . . . . . . . . . . . . . . . . . . . . Piercing . | . . . . . . . . . . . . . . . . . . . . . . . . Sneak Attacks 28 | . . . . 3 2 13 1 4 . . . 2 1 1 . . . . 1 . . . . Combat Hostiles 3 | . . . . . . . . . . . . . 1 1 . . . . 1 . . . . Follow-up Attacks . | . . . . . . . . . . . . . . . . . . . . . . . . Damage Inflicted 26187 | 135 787 242 1334 2007 841 3721 1604 417 2423 18 531 1015 967 493 . 652 1301 172 1984 704 357 670 3812 Guns 8989 | 135 787 242 656 1328 374 981 1059 321 632 18 270 555 93 . . 327 327 64 . . . . 820 Cannons 8364 | . . . 370 308 467 1621 159 . 462 . 172 . . . . . 454 . 304 704 357 670 2316 Explosions 5997 | . . . 189 . . 990 386 . 490 . 89 . 768 . . 325 510 . 1574 . . . 676 Melee 2808 | . . . 119 362 . 129 . 96 839 . . 460 106 493 . . . 108 96 . . . . Ramming 29 | . . . . 9 . . . . . . . . . . . . 10 . 10 . . . . Kinetic 13848 | 135 787 242 656 1328 374 1294 686 301 772 18 442 555 93 . . 327 781 25 304 704 357 531 3136 Thermal 4249 | . . . 370 308 467 1308 532 20 322 . . . . . . . 510 39 234 . . 139 . Explosive 5060 | . . . 189 . . 990 386 . 490 . . . 664 . . 325 . . 1340 . . . 676 Electromagnetic 193 | . . . . . . . . . . . 89 . 104 . . . . . . . . . . Impact 2808 | . . . 119 362 . 129 . 96 839 . . 460 106 493 . . . 108 96 . . . . Slashing . | . . . . . . . . . . . . . . . . . . . . . . . . Piercing . | . . . . . . . . . . . . . . . . . . . . . . . . Highest Corruption 8 | . . . . . 8 . . 3 6 . . . . . . . 3 3 4 4 5 5 . Average Corruption 4 | . . . . . 8 . . 1 4 . . . . . . . 2 3 3 4 4 5 . Corruption Purged . | . . . . . . . . . . . . . . . . . . . . . . . . Corruption Blocked . | . . . . . . . . . . . . . . . . . . . . . . . . Effects 118 | . . . . . 45 . . 2 20 . . . . . . . 2 14 9 13 12 1 . Message Errors 17 | . . . . . 7 . . 1 3 . . . . . . . . 2 1 1 2 . . Matter Fused 32 | . . . . . 12 . . . 5 . . . . . . . 1 1 4 4 4 1 . Heat Flow Errors 14 | . . . . . 8 . . . 1 . . . . . . . . 3 1 1 . . . Energy Discharges 18 | . . . . . 5 . . . 5 . . . . . . . . 4 1 1 2 . . Parts Rejected 2 | . . . . . . . . . 1 . . . . . . . . . 1 . . . . Parts Fused 1 | . . . . . 1 . . . . . . . . . . . . . . . . . . Data Loss (minor) 15 | . . . . . 9 . . . 1 . . . . . . . . . 1 2 2 . . Data Loss (major) 7 | . . . . . . . . 1 3 . . . . . . . . 1 . 1 1 . . Misfires 5 | . . . . . 1 . . . . . . . . . . . 1 2 . 1 . . . Alerts 7 | . . . . . 2 . . . 1 . . . . . . . . 1 . 2 1 . . Overload Shots . | . . . . . . . . . . . . . . . . . . . . . . . . Overflow Damage 1749 | . . . 54 178 . 134 12 74 325 . . 328 106 101 . . 124 64 35 95 19 . 100 Projectiles 306 | . . . . 15 . 10 3 . 8 . . . . . . . 73 . 10 95 19 . 73 Explosions 190 | . . . 22 . . 35 9 . 21 . . . . . . . 51 . 25 . . . 27 Melee 1253 | . . . 32 163 . 89 . 74 296 . . 328 106 101 . . . 64 . . . . . Knockbacks 37 | . . . . 1 . 6 3 . 5 . . 4 . 2 . . 6 . . . . 1 9 Impact 10 | . . . . 1 . 2 . . 1 . . 4 . 2 . . . . . . . . . Kinetic 27 | . . . . . . 4 3 . 4 . . . . . . . 6 . . . . 1 9 Secondary . | . . . . . . . . . . . . . . . . . . . . . . . . Self-Inflicted Damage 347 | . . . . . . . 58 . 97 . . . 33 . . . 55 . . . . . 104 Shots 11 | . . . . . . . 2 . 4 . . . 1 . . . 1 . . . . . 3 Rammed 3 | . . . . 1 . . . . . . . . . . . . 1 . 1 . . . . Targets Rammed 3 | . . . . 1 . . . . . . . . . . . . 1 . 1 . . . . Kicked . | . . . . . . . . . . . . . . . . . . . . . . . . Crushed . | . . . . . . . . . . . . . . . . . . . . . . . . Highest Temperature 568 | . 48 . 165 226 486 520 228 87 541 . . 48 69 1 . 13 132 204 176 98 82 568 203 Average Temperature 87 | . 17 . 52 61 95 108 63 43 147 . . 21 27 1 . 3 52 102 32 32 37 197 46 Received Heat Transfer 3916 | . 183 . 321 378 282 774 333 27 633 . 18 81 78 . . 111 . . 12 9 18 . 658 Effects 26 | . . . . . 7 10 1 . 4 . . . . . . . . . . . . 4 . Shutdowns 5 | . . . . . . 3 . . 1 . . . . . . . . . . . . 1 . Energy Bleed 3 | . . . . . . 2 1 . . . . . . . . . . . . . . . . Interference 7 | . . . . . 5 . . . 2 . . . . . . . . . . . . . . Matter Decay 1 | . . . . . 1 . . . . . . . . . . . . . . . . . . Short Circuit 1 | . . . . . . 1 . . . . . . . . . . . . . . . . . Damage (minor) 3 | . . . . . . . . . 1 . . . . . . . . . . . . 2 . Damage (major) 5 | . . . . . 1 4 . . . . . . . . . . . . . . . . . Damage (core) 1 | . . . . . . . . . . . . . . . . . . . . . . 1 . Siege Activations 6 | . . . . . . . . . . . . . . . . . . . . 1 1 . 4 Total Turns 59 | . . . . . . . . . . . . . . . . . . . . 6 3 . 50 Longest Duration 26 | . . . . . . . . . . . . . . . . . . . . 6 3 . 26 Robots Corrupted . | . . . . . . . . . . . . . . . . . . . . . . . . Combat Hostiles . | . . . . . . . . . . . . . . . . . . . . . . . . Parts Fried 22 | . . . . 1 . 4 . 1 3 . . 8 2 . . 1 . 2 . . . . . Impact Corruptions 34 | . . . 1 3 . 5 . 1 7 . . 9 2 5 . . . 1 . . . . . Robots Melted 2 | . . . 1 . . . . . . . . . . . . . . . . . . 1 . Combat Hostiles 2 | . . . 1 . . . . . . . . . . . . . . . . . . 1 . Parts Melted 12 | . . . 3 3 2 2 1 . . . . . . . . . . . 1 . . . . Heat Transferred 6411 | . . . 666 555 814 2183 942 37 555 . . . . . . . 250 111 150 . . 148 . Parts Sabotaged . | . . . . . . . . . . . . . . . . . . . . . . . . Parts Stolen . | . . . . . . . . . . . . . . . . . . . . . . . . Parts Stripped . | . . . . . . . . . . . . . . . . . . . . . . . . Power Chain Reactions . | . . . . . . . . . . . . . . . . . . . . . . . . Alert | -11 -10 -10 -9 -9 -9 -8 -8 -8 -8 -7 -7 -6 -6 -6 -6 -5 -5 -5 -5 -5 -5 -5 -4 ------- Run | Yrd Mat Min Mat Sto Gar Mat Gar Mat Gar Fac DSF Fac Low Low Dat Pro Fac Was Fac Upp Upp War Pro Peak Influence 1248 | 20 302 17 485 497 912 888 1185 577 496 266 380 253 . . . . 512 179 1248 . . . . Initial 577 | . 13 7 . 65 39 444 531 577 41 260 186 199 . . . . 307 179 22 . . . . Average 349 | 7 129 3 235 275 494 535 802 320 354 262 283 75 . . . . 327 117 728 . . . . Maximum Alert Level 4 | . 1 . 2 2 3 3 4 2 2 1 1 1 . . . . 2 . 4 . . . . Low Security (%) 36 | 100 82 100 37 37 14 . . 37 22 . 2 89 . . . . . 100 7 . . . . Level 1 25 | . 17 . 61 30 19 22 . 10 21 100 97 10 . . . . 91 . 26 . . . . Level 2 24 | . . . 1 32 47 49 28 52 56 . . . . . . . 8 . 8 . . . . Level 3 11 | . . . . . 19 27 59 . . . . . . . . . . . 25 . . . . Level 4 2 | . . . . . . . 12 . . . . . . . . . . . 32 . . . . Level 5 . | . . . . . . . . . . . . . . . . . . . . . . . . High Security . | . . . . . . . . . . . . . . . . . . . . . . . . Max Security . | . . . . . . . . . . . . . . . . . . . . . . . . Sterilizations 1 | . . . . . . . . . . . 1 . . . . . . . . . . . . Squads Dispatched 36 | . 1 . 3 7 . 10 . 1 . . 1 3 . . . 1 5 . 4 . . . . Investigation 9 | . . . . 4 . 2 . . . . . 1 . . . 1 1 . . . . . . Extermination 3 | . . . . . . . . . . . . 2 . . . . 1 . . . . . . Reinforcement 12 | . 1 . 3 . . 4 . 1 . . 1 . . . . . 1 . 1 . . . . Assault 3 | . . . . . . 1 . . . . . . . . . . 1 . 1 . . . . Garrison 9 | . . . . 3 . 3 . . . . . . . . . . 1 . 2 . . . . Intercept . | . . . . . . . . . . . . . . . . . . . . . . . . Searches Triggered . | . . . . . . . . . . . . . . . . . . . . . . . . Construction Impeded 4 | . . . 1 . . 1 . . . . . . . . . . 1 . 1 . . . . Haulers Reinforced . | . . . . . . . . . . . . . . . . . . . . . . . . Active Scanning Responses . | . . . . . . . . . . . . . . . . . . . . . . . . Cargo Convoy Interrupts . | . . . . . . . . . . . . . . . . . . . . . . . . Stealth | -11 -10 -10 -9 -9 -9 -8 -8 -8 -8 -7 -7 -6 -6 -6 -6 -5 -5 -5 -5 -5 -5 -5 -4 --------- Run | Yrd Mat Min Mat Sto Gar Mat Gar Mat Gar Fac DSF Fac Low Low Dat Pro Fac Was Fac Upp Upp War Pro Distress Signals 15 | . 3 . 1 2 . 4 . 1 . . . 1 . . . 1 . . 2 . . . . Communications Jammed . | . . . . . . . . . . . . . . . . . . . . . . . . Distress Signals . | . . . . . . . . . . . . . . . . . . . . . . . . Times Spotted 375 | . 24 . 29 34 25 51 26 8 30 . 11 15 10 3 . 18 20 . 25 14 2 13 17 Peak Tracking Total 12 | . 5 . 3 6 4 9 4 4 8 . 3 4 3 3 . 5 7 . 6 5 1 12 6 Tactical Retreats 16 | . 2 . . 2 . 2 . . 4 . 1 . 1 . . 1 1 . . . . . 2 Traps | -11 -10 -10 -9 -9 -9 -8 -8 -8 -8 -7 -7 -6 -6 -6 -6 -5 -5 -5 -5 -5 -5 -5 -4 ------- Run | Yrd Mat Min Mat Sto Gar Mat Gar Mat Gar Fac DSF Fac Low Low Dat Pro Fac Was Fac Upp Upp War Pro Traps Triggered 21 | . . . . 2 5 . 3 2 4 . 2 . . . . . 1 . . . . 2 . Indirectly . | . . . . . . . . . . . . . . . . . . . . . . . . Trap Hack Attempts . | . . . . . . . . . . . . . . . . . . . . . . . . Triggered . | . . . . . . . . . . . . . . . . . . . . . . . . Disarmed . | . . . . . . . . . . . . . . . . . . . . . . . . Reprogrammed . | . . . . . . . . . . . . . . . . . . . . . . . . Reused . | . . . . . . . . . . . . . . . . . . . . . . . . Traps Extracted . | . . . . . . . . . . . . . . . . . . . . . . . . Installed 9 | . . . . . 4 . . . . . . . . . . 5 . . . . . . . Triggered 2 | . . . . . . . . . . . . . . . . 2 . . . . . . . Most Traps Carried 3 | . . . . . 3 2 2 . . . . . . . . . . . . . . . . Machines | -11 -10 -10 -9 -9 -9 -8 -8 -8 -8 -7 -7 -6 -6 -6 -6 -5 -5 -5 -5 -5 -5 -5 -4 ---------- Run | Yrd Mat Min Mat Sto Gar Mat Gar Mat Gar Fac DSF Fac Low Low Dat Pro Fac Was Fac Upp Upp War Pro Machines Disabled 22 | . . . 1 2 5 2 . . . . . . . . . . 5 . 7 . . . . Max in Single Turn 5 | . . . 1 1 1 1 . . . . . . . . . . 5 . 5 . . . . Garrison Access 2 | . . . . . . . . . . . . 1 . . . . 1 . . . . . . Garrison Relay 10 | . . . . . 4 . 4 . 2 . . . . . . . . . . . . . . Phase Generator 1 | . . . . . . . 1 . . . . . . . . . . . . . . . . Machines Repaired . | . . . . . . . . . . . . . . . . . . . . . . . . Machines Dismantled 12 | . . . . 1 4 . 5 . 2 . . . . . . . . . . . . . . Machines Sabotaged . | . . . . . . . . . . . . . . . . . . . . . . . . Overloaded Fab Kills . | . . . . . . . . . . . . . . . . . . . . . . . . Hacking | -11 -10 -10 -9 -9 -9 -8 -8 -8 -8 -7 -7 -6 -6 -6 -6 -5 -5 -5 -5 -5 -5 -5 -4 --------- Run | Yrd Mat Min Mat Sto Gar Mat Gar Mat Gar Fac DSF Fac Low Low Dat Pro Fac Was Fac Upp Upp War Pro Machines Accessed 57 | . 1 . 5 12 1 5 4 7 1 2 . 8 . . 4 1 4 . 1 1 . . . Terminals 43 | . 1 . 5 11 1 3 4 6 1 1 . 6 . . . 1 2 . 1 . . . . Fabricators 2 | . . . . . . . . . . . . 1 . . . . 1 . . . . . . Repair Stations 1 | . . . . . . 1 . . . . . . . . . . . . . . . . . Recycling Units 2 | . . . . . . . . . . 1 . . . . . . 1 . . . . . . Scanalyzers . | . . . . . . . . . . . . . . . . . . . . . . . . Garrison Access 4 | . . . . 1 . 1 . 1 . . . 1 . . . . . . . . . . . Total Hacks 143 | . 1 . 12 28 1 14 9 20 3 3 . 15 . . 24 3 7 . 2 1 . . . Successful 72 | . . . 6 12 1 7 3 7 1 1 . 4 . . 24 3 1 . 1 1 . . . Failed 70 | . 1 . 6 15 . 7 6 13 2 2 . 11 . . . . 6 . 1 . . . . Catastrophic 13 | . . . 1 3 . . . 3 . . . 5 . . . . 1 . . . . . . Database Lockouts 1 | . . . . 1 . . . . . . . . . . . . . . . . . . . Manual 44 | . . . 6 12 . 6 . 9 . 2 . 6 . . . . 1 . 2 . . . . Terminals 103 | . 1 . 12 26 1 10 9 19 3 1 . 12 . . . 3 4 . 2 . . . . Fabricators 3 | . . . . . . . . . . . . 2 . . . . 1 . . . . . . Repair Stations 3 | . . . . . . 3 . . . . . . . . . . . . . . . . . Recycling Units 4 | . . . . . . . . . . 2 . . . . . . 2 . . . . . . Scanalyzers . | . . . . . . . . . . . . . . . . . . . . . . . . Garrison Access 5 | . . . . 2 . 1 . 1 . . . 1 . . . . . . . . . . . Terminal Hacks 65 | . . . 6 11 1 4 3 6 1 1 . 3 . . 24 3 . . 1 1 . . . Record 12 | . . . 1 . . . . . . . . . . . 7 3 . . . 1 . . . Part Schematic 10 | . . . . 1 . . . . . . . . . . 9 . . . . . . . . Robot Schematic 5 | . . . . . . . . . . . . . . . 5 . . . . . . . . Robot Analysis 6 | . . . . 3 . 2 . 1 . . . . . . . . . . . . . . . Prototype ID Bank 5 | . . . . . . . . 2 . . . . . . 3 . . . . . . . . Open Door 4 | . . . . 4 . . . . . . . . . . . . . . . . . . . Open DSF 1 | . . . . . . . . . . 1 . . . . . . . . . . . . . Branch Access Points 5 | . . . 1 . . 1 . 1 . . . 1 . . . . . . 1 . . . . Emergency Access Points 4 | . . . . . 1 . 1 . 1 . . 1 . . . . . . . . . . . Alert Level 2 | . . . 1 1 . . . . . . . . . . . . . . . . . . . Unreport Threat 3 | . . . . 2 . . . 1 . . . . . . . . . . . . . . . Locate Traps 2 | . . . . . . 1 . 1 . . . . . . . . . . . . . . . Recall Investigation 1 | . . . 1 . . . . . . . . . . . . . . . . . . . . Recall Reinforcements 1 | . . . 1 . . . . . . . . . . . . . . . . . . . . Registered Prototypes 1 | . . . 1 . . . . . . . . . . . . . . . . . . . . Zone Layout 1 | . . . . . . . . . . . . 1 . . . . . . . . . . . Garrison Registry 1 | . . . . . . . 1 . . . . . . . . . . . . . . . . Patrol Navigation 1 | . . . . . . . 1 . . . . . . . . . . . . . . . . Fabricator Hacks 1 | . . . . . . . . . . . . . . . . . 1 . . . . . . Build 1 | . . . . . . . . . . . . . . . . . 1 . . . . . . Repair Station Hacks 2 | . . . . . . 2 . . . . . . . . . . . . . . . . . Scan Component 1 | . . . . . . 1 . . . . . . . . . . . . . . . . . Repair 1 | . . . . . . 1 . . . . . . . . . . . . . . . . . Recycling Unit Hacks . | . . . . . . . . . . . . . . . . . . . . . . . . Scanalyzer . | . . . . . . . . . . . . . . . . . . . . . . . . Garrison Access Hacks 4 | . . . . 1 . 1 . 1 . . . 1 . . . . . . . . . . . Unlock Access 3 | . . . . 1 . 1 . 1 . . . . . . . . . . . . . . . Seal Access 1 | . . . . . . . . . . . . 1 . . . . . . . . . . . Unauthorized Hacks . | . . . . . . . . . . . . . . . . . . . . . . . . Terminals . | . . . . . . . . . . . . . . . . . . . . . . . . Fabricators . | . . . . . . . . . . . . . . . . . . . . . . . . Repair Stations . | . . . . . . . . . . . . . . . . . . . . . . . . Recycling Units . | . . . . . . . . . . . . . . . . . . . . . . . . Scanalyzers . | . . . . . . . . . . . . . . . . . . . . . . . . Garrison Access . | . . . . . . . . . . . . . . . . . . . . . . . . Data Cores Recovered 1 | . . . . . . 1 . . . . . . . . . . . . . . . . . Used . | . . . . . . . . . . . . . . . . . . . . . . . . Hacking Detections 40 | . 1 . 4 8 1 3 2 7 1 1 . 7 . . . 1 3 . 1 . . . . Full Trace Events 8 | . . . . 3 . 1 . 1 . . . 1 . . . 1 1 . . . . . . Feedback Events . | . . . . . . . . . . . . . . . . . . . . . . . . Feedback Blocked . | . . . . . . . . . . . . . . . . . . . . . . . . Robot Schematics Acquired 5 | . . . . . . . . . . . . . . . 5 . . . . . . . . Robots Built . | . . . . . . . . . . . . . . . . . . . . . . . . Authchips . | . . . . . . . . . . . . . . . . . . . . . . . . Time . | . . . . . . . . . . . . . . . . . . . . . . . . Total Robot Build Rating . | . . . . . . . . . . . . . . . . . . . . . . . . Part Schematics Acquired 10 | . . . . 1 . . . . . . . . . . 9 . . . . . . . . Parts Built 1 | . . . . . . . . . . . . . . . . . 1 . . . . . . Authchips . | . . . . . . . . . . . . . . . . . . . . . . . . Time 64 | . . . . . . . . . . . . . . . . . 64 . . . . . . Total Part Build Rating 8 | . . . . . . . . . . . . . . . . . 8 . . . . . . Parts Repaired 1 | . . . . . . 1 . . . . . . . . . . . . . . . . . Time 26 | . . . . . . 26 . . . . . . . . . . . . . . . . . Parts Recycled . | . . . . . . . . . . . . . . . . . . . . . . . . Recycled Matter . | . . . . . . . . . . . . . . . . . . . . . . . . Retrieved Matter . | . . . . . . . . . . . . . . . . . . . . . . . . Retrieved Components . | . . . . . . . . . . . . . . . . . . . . . . . . Parts Scanalyzed . | . . . . . . . . . . . . . . . . . . . . . . . . Part Schematics Acquired . | . . . . . . . . . . . . . . . . . . . . . . . . Parts Damaged . | . . . . . . . . . . . . . . . . . . . . . . . . Bothacking | -11 -10 -10 -9 -9 -9 -8 -8 -8 -8 -7 -7 -6 -6 -6 -6 -5 -5 -5 -5 -5 -5 -5 -4 ------------ Run | Yrd Mat Min Mat Sto Gar Mat Gar Mat Gar Fac DSF Fac Low Low Dat Pro Fac Was Fac Upp Upp War Pro Used RIF Installer 4 | . . . . . 1 . 2 . 1 . . . . . . . . . . . . . . Threat Obfuscator 1 | . . . . . . . . . 1 . . . . . . . . . . . . . . Program Shield 1 | . . . . . . . 1 . . . . . . . . . . . . . . . . Autooverride 1 | . . . . . . . 1 . . . . . . . . . . . . . . . . Robots Hacked 40 | . . . . . 3 6 2 1 1 . 1 3 2 2 . 7 5 . . 4 . . 3 Non-combat 11 | . . . . . . 5 . 1 . . . . . . . 2 3 . . . . . . Combat 29 | . . . . . 3 1 2 . 1 . 1 3 2 2 . 5 2 . . 4 . . 3 Autooverrided 2 | . . . . . . . . . 1 . . . . . . . . . . . . . 1 Robot Hacks Applied 48 | . . . . . 3 12 2 3 . . 1 3 2 2 . 8 5 . . 4 . . 3 parse_system 4 | . . . . . . 1 . . . . . . . . . 2 . . . 1 . . . no_distress 2 | . . . . . . 2 . . . . . . . . . . . . . . . . . generate_echo 1 | . . . . . . . . 1 . . . . . . . . . . . . . . . find_station 1 | . . . . . . 1 . . . . . . . . . . . . . . . . . purge_threat 3 | . . . . . . 1 . 2 . . . . . . . . . . . . . . . map_route 2 | . . . . . . 1 . . . . . . . . . . 1 . . . . . . relay_feed 1 | . . . . . . 1 . . . . . . . . . . . . . . . . . link_fov 3 | . . . . . . 2 . . . . . . . . . . 1 . . . . . . reboot_propulsion 1 | . . . . . . . . . . . . . . . . . . . . . . . 1 scatter_targeting 1 | . . . . . . . . . . . . . . . . . . . . 1 . . . overload_power 2 | . . . . . . . . . . . . . . . . 1 . . . . . . 1 amplify_resonance 6 | . . . . . . . . . . . . 1 1 1 . . 2 . . 1 . . . reboot_system 3 | . . . . . . . 1 . . . . 1 . 1 . . . . . . . . . overwrite_iff 6 | . . . . . . . . . . . . 1 1 . . 2 . . . 1 . . 1 streamctrl_high 1 | . . . . . 1 . . . . . . . . . . . . . . . . . . formatsys_low 3 | . . . . . . 2 . . . . . . . . . . 1 . . . . . . formatsys_high 8 | . . . . . 2 1 1 . . . 1 . . . . 3 . . . . . . . Relay Couplers Released 42 | . . . . . 16 . 15 . 10 . . . . . . . 1 . . . . . . Machine Destruction 42 | . . . . . 16 . 15 . 10 . . . . . . . 1 . . . . . . Attached 23 | . . . . . 3 5 4 1 1 . 1 3 . . . 2 2 . . . . . 1 Fabnet Peak Effective % . | . . . . . . . . . . . . . . . . . . . . . . . . Robots Rewired 1 | . . . . . . . . . . . . . . . . . . . . 1 . . . Allies Hacked . | . . . . . . . . . . . . . . . . . . . . . . . . Hacks Repelled . | . . . . . . . . . . . . . . . . . . . . . . . . Allies | -11 -10 -10 -9 -9 -9 -8 -8 -8 -8 -7 -7 -6 -6 -6 -6 -5 -5 -5 -5 -5 -5 -5 -4 -------- Run | Yrd Mat Min Mat Sto Gar Mat Gar Mat Gar Fac DSF Fac Low Low Dat Pro Fac Was Fac Upp Upp War Pro Total Allies 54 | . . 3 . 10 3 3 1 . 1 . 1 1 1 . . 5 1 20 . 2 . . 2 Largest Group 21 | . . 3 3 10 4 2 1 . 1 . 1 1 1 . . 2 3 21 21 10 5 5 2 Highest-Rated Group 800 | . . 40 40 88 32 31 15 . 16 . 90 90 29 . . 93 116 800 798 355 130 130 57 Highest-Rated Ally 90 | . . 16 16 16 15 26 15 . 16 . 90 90 29 . . 64 64 50 50 46 27 30 30 Total Orders 7 | . . . . . 1 . . . . . . . 3 . . 3 . . . . . . . STAY 3 | . . . . . 1 . . . . . . . . . . 2 . . . . . . . FOLLOW 1 | . . . . . . . . . . . . . . . . 1 . . . . . . . EXPLORE 1 | . . . . . . . . . . . . . 1 . . . . . . . . . . RETURN 2 | . . . . . . . . . . . . . 2 . . . . . . . . . . Ally Attacks 408 | . . . 64 12 31 30 . . 3 . 14 6 2 . . 17 5 9 160 52 . . 3 Total Damage 9425 | . . . 730 101 305 617 . . 18 . 448 320 19 . . 291 89 408 4982 1013 . . 84 Kills 73 | . . . 12 3 8 7 . . . . 5 . . . . 5 2 1 22 8 . . . Allies Corrupted 2 | . . . . 1 . . . . . . . . . . . . . . . 1 . . . Allies Melted 2 | . . . . . . . . . 1 . . . . . . 1 . . . . . . . Intel | -11 -10 -10 -9 -9 -9 -8 -8 -8 -8 -7 -7 -6 -6 -6 -6 -5 -5 -5 -5 -5 -5 -5 -4 ------- Run | Yrd Mat Min Mat Sto Gar Mat Gar Mat Gar Fac DSF Fac Low Low Dat Pro Fac Was Fac Upp Upp War Pro Robot Analysis Total 6 | . . . . 3 . 2 . 1 . . . . . . . . . . . . . . . Derelict Logs Recovered 7 | . . 2 . . . . . . . . . . 2 . . 1 . . . 1 . . 1 Drone Launches 3 | . . . . . . . . . . . . . 3 . . . . . . . . . . Drone Recoveries 2 | . . . . . . . . . . . . . 2 . . . . . . . . . . Exploration | -11 -10 -10 -9 -9 -9 -8 -8 -8 -8 -7 -7 -6 -6 -6 -6 -5 -5 -5 -5 -5 -5 -5 -4 ------------- Run | Yrd Mat Min Mat Sto Gar Mat Gar Mat Gar Fac DSF Fac Low Low Dat Pro Fac Was Fac Upp Upp War Pro Turns Passed 24846 | 177 878 1061 1909 1826 2231 2443 1489 769 969 183 351 1744 2431 943 146 944 623 636 582 611 533 233 1134 Spaces Moved 10595 | 80 232 584 760 622 778 817 505 289 422 87 173 648 1114 608 98 517 253 336 323 342 328 121 558 Core 16 | 2 . . . . . . . . . . . . . . . . . . . . . . 14 Treads 5985 | 78 127 . 361 622 516 679 505 270 17 . . 461 274 . . 4 169 244 323 342 328 121 544 Legs . | . . . . . . . . . . . . . . . . . . . . . . . . Wheels 4594 | . 105 584 399 . 262 138 . 19 405 87 173 187 840 608 98 513 84 92 . . . . . Hover . | . . . . . . . . . . . . . . . . . . . . . . . . Flight . | . . . . . . . . . . . . . . . . . . . . . . . . Fastest Speed 50 | 50 160 175 175 225 190 140 225 105 105 145 145 160 150 150 150 135 150 152 152 152 155 152 50 Average Speed 190 | 157 271 175 208 232 233 230 225 218 147 188 159 218 177 150 150 151 192 167 152 152 155 154 151 Slowest Speed 570 | 160 400 175 240 312 480 560 225 225 317 210 160 330 570 150 150 330 247 210 155 155 240 155 250 Overloaded Moves . | . . . . . . . . . . . . . . . . . . . . . . . . Propulsion Burnouts . | . . . . . . . . . . . . . . . . . . . . . . . . Robots Hopped . | . . . . . . . . . . . . . . . . . . . . . . . . Cave-ins Triggered 1 | . . . . . 1 . . . . . . . . . . . . . . . . . . Exploration Rate (%) 54 | 5 54 96 64 76 74 56 83 23 51 2 91 14 96 73 70 70 9 96 12 50 52 20 69 Regions Visited 23 Branch Regions 10 Pre-discovered Areas 2 | . . . . . . . . . . . . . 1 . 1 . . . . . . . . Known Exits Taken 9 | . . . 1 1 . 1 . 1 . 1 . 1 . . . . . . 1 1 1 . . Unknown Exits Taken 8 | 1 1 1 . . . . . . . . . . 1 1 1 1 . . . . . 1 . Scrap Searched 17 | . . 2 . . . . . . . . . . 3 2 . 4 . . . 3 2 . 1 Spaces Dug 68 | . 5 . 8 3 . 3 21 1 . 2 1 14 3 2 . . . . 4 1 . . . Terrain Destroyed 537 | . 5 . 19 3 . 67 32 1 43 2 1 15 93 2 . 21 38 . 138 6 4 4 43 Melee 31 | . . . 1 3 . . 1 1 . 2 1 14 3 2 . . . . 2 1 . . . Projectile 78 | . 5 . . . . 15 2 . 6 . . 1 1 . . 3 9 . 4 5 4 4 19 AOE 428 | . . . 18 . . 52 29 . 37 . . . 89 . . 18 29 . 132 . . . 24 Terrain Rammed . | . . . . . . . . . . . . . . . . . . . . . . . . Walls Destroyed . | . . . . . . . . . . . . . . . . . . . . . . . . Machines Disabled . | . . . . . . . . . . . . . . . . . . . . . . . . Actions | -11 -10 -10 -9 -9 -9 -8 -8 -8 -8 -7 -7 -6 -6 -6 -6 -5 -5 -5 -5 -5 -5 -5 -4 --------- Run | Yrd Mat Min Mat Sto Gar Mat Gar Mat Gar Fac DSF Fac Low Low Dat Pro Fac Was Fac Upp Upp War Pro Total 13728 | 107 360 601 966 826 1062 1175 713 396 615 99 218 896 1539 625 97 651 350 409 386 410 340 148 739 Wait 1451 | 4 42 3 71 48 104 139 64 68 42 4 . 167 386 5 . 87 23 32 34 16 5 18 89 Move 10575 | 79 231 583 759 622 777 816 504 289 421 86 172 647 1113 607 97 516 253 335 322 341 327 120 558 Hop . | . . . . . . . . . . . . . . . . . . . . . . . . Pick Up 152 | 4 11 3 21 17 21 11 11 3 9 2 6 7 2 1 . 4 8 6 2 . . . 3 Fast Attach 85 | 7 3 . 6 9 2 14 6 4 7 3 . 4 3 . . . 4 6 2 1 . . 4 Attach 82 | . . . 6 5 5 9 2 3 13 1 5 3 6 . . 3 7 2 2 . . . 10 Detach 20 | . 3 . . 1 1 1 . . 6 . 3 . . . . . 2 3 . . . . . Swap 203 | . 10 1 18 10 34 38 24 4 8 . 6 17 8 1 . 5 8 1 1 1 . 2 6 Drop 165 | . 4 . 23 23 21 18 15 7 5 . 4 9 2 . . . 9 17 4 1 . . 3 Fire 753 | 13 56 11 55 73 64 109 57 12 59 1 17 18 15 5 . 31 35 2 15 23 8 8 66 Melee 116 | . . . 7 8 6 20 5 5 23 2 1 24 4 6 . . . 1 3 1 . . . Ram . | . . . . . . . . . . . . . . . . . . . . . . . . Kick . | . . . . . . . . . . . . . . . . . . . . . . . . Crush 3 | . . . . 1 . . . . . . . . . . . . 1 . 1 . . . . Escape Stasis 34 | . . . . . 10 . 4 . 16 . 4 . . . . . . . . . . . . Rewire 30 | . . . . . . . . . . . . . . . . . . 4 . 26 . . . Trap 9 | . . . . . 4 . . . . . . . . . . 5 . . . . . . . Miscellaneous 50 | . . . . 9 13 . 21 1 6 . . . . . . . . . . . . . . Route ------- -11/Scrapyard -10/Materials -10/Mines (discovered 2 exits: *Mat x2) -9/Materials (discovered 3 exits: *Mat / *Min / *Sto) -9/Storage (discovered 2 exits: *Mat / Gar) -9/Garrison (discovered 3 exits: *Mat x3) -8/Materials (discovered 2 exits: *Fac / Gar) -8/Garrison (discovered 4 exits: *Mat x4) -8/Materials (discovered 2 exits: *Fac / Gar) -8/Garrison -7/Factory -7/DSF -6/Factory (discovered 2 exits: *Low x2) -6/Lower Caves -6/Lower Caves (discovered 2 exits: *Fac / *Dat) -6/Data Miner -5/Proximity Caves -5/Factory -5/Waste -5/Factory (discovered 4 exits: *Upp x2 / Ext x2) -5/Upper Caves -5/Upper Caves -5/Warlord -4/Proximity Caves (discovered 1 exit: Fac) History --------- Turn | Location | Event 13 | -11/Scrapyard | Discovered new exit (range 15) 178 | -11/Scrapyard | Entered Materials 325 | -10/Materials | Build established: Mutant 450 | -10/Materials | Discovered new exit (range 15) 978 | -10/Materials | Derelicts attacked the area 1050 | -10/Materials | Core integrity fell below 50% 1056 | -10/Materials | Entered Mines 1063 | -10/Mines | Assisted by bots powering up and referring to "LRC-V3" 1135 | -10/Mines | Discovered new exit (range 3) 1278 | -10/Mines | YI-UF0 nonchalantly dropped a Grenade Launcher on the ground 1302 | -10/Mines | Murdered YI-UF0 1302 | -10/Mines | Destroyed YI-UF0 1596 | -10/Mines | Learned Materials trap positions 1685 | -10/Mines | Learned Materials stockpile data 1715 | -10/Mines | Discovered new exit (range 5) 2117 | -10/Mines | Entered Materials 2117 | -9/Materials | Accompanied by 3 allies 2117 | -9/Materials | Evolved 2 slots: Propulsion x1, Utility x1 2118 | -9/Materials | Loaded intel: 23 trap records 2320 | -9/Materials | Discovered new exit (range 6) 3340 | -9/Materials | Identified exit to Mines 3340 | -9/Materials | Identified exit to Storage 3956 | -9/Materials | Discovered new exit (range 13) 4026 | -9/Materials | Entered Storage 4355 | -9/Storage | Garrison activated, responded to threat 4428 | -9/Storage | Central database locked down 4913 | -9/Storage | Discovered new exit (range 10) 5443 | -9/Storage | Assisted by bots powering up and referring to "LRC-V3" 5627 | -9/Storage | Lost 5 allies 5741 | -9/Storage | Build established: Commander-Mutant 5852 | -9/Storage | Identified exit to Garrison 5852 | -9/Storage | Entered Garrison 5852 | -9/Garrison | Accompanied by 4 allies 5963 | -9/Garrison | Triggered checkpoint 6008 | -9/Garrison | Garrison Relay disabled 6141 | -9/Garrison | Triggered checkpoint 6144 | -9/Garrison | Triggered checkpoint 6183 | -9/Garrison | Lost 3 allies 6263 | -9/Garrison | Core integrity fell below 50% 6267 | -9/Garrison | Build established: Mutant 6372 | -9/Garrison | Triggered checkpoint 6490 | -9/Garrison | Installed Relay Interface Framework 6518 | -9/Garrison | Garrison Relay disabled 6582 | -9/Garrison | Discovered new exit (range 9) 6726 | -9/Garrison | Crushed by falling debris 6757 | -9/Garrison | Lost 3 parts (2n1u) 6786 | -9/Garrison | Build established: Bothacker-Mutant 7162 | -9/Garrison | Triggered checkpoint 7240 | -9/Garrison | Garrison Relay disabled 7358 | -9/Garrison | Discovered new exit (range 12) 7625 | -9/Garrison | Triggered checkpoint 7721 | -9/Garrison | Discovered new exit (range 9) 7787 | -9/Garrison | Spotted B-75 Beast 7999 | -9/Garrison | Garrison Relay disabled 8083 | -9/Garrison | Entered Materials 8083 | -8/Materials | Evolved 2 slots: Propulsion x1, Utility x1 8734 | -8/Materials | Discovered new exit (range 10) 9235 | -8/Materials | Lost 3 parts (2n1u) 9774 | -8/Materials | Garrison activated, responded to threat 9833 | -8/Materials | Destroyed 7 combat bots 10227 | -8/Materials | Repaired Broken Arm. Treads 10483 | -8/Materials | First assault squad dispatched 10519 | -8/Materials | Identified exit to Garrison 10526 | -8/Materials | Entered Garrison 10569 | -8/Garrison | Triggered checkpoint 10623 | -8/Garrison | Garrison Relay disabled 10812 | -8/Garrison | Triggered checkpoint 10938 | -8/Garrison | Triggered checkpoint 10991 | -8/Garrison | Expanded RIF knowledge: Program Shield 11093 | -8/Garrison | Garrison Relay disabled 11172 | -8/Garrison | Triggered checkpoint 11327 | -8/Garrison | Phase Generator disabled 11349 | -8/Garrison | Discovered new exit (range 11) 11363 | -8/Garrison | Discovered new exit (range 89) 11363 | -8/Garrison | Discovered new exit (range 11) 11363 | -8/Garrison | Discovered new exit (range 81) 11363 | -8/Garrison | Discovered new exit (range 49) 11609 | -8/Garrison | Garrison Relay disabled 11686 | -8/Garrison | Triggered checkpoint 11760 | -8/Garrison | Triggered checkpoint 11879 | -8/Garrison | Expanded RIF knowledge: Autooverride 11896 | -8/Garrison | Triggered checkpoint 11986 | -8/Garrison | Garrison Relay disabled 12015 | -8/Garrison | Entered Materials 12663 | -8/Materials | Discovered new exit (range 3) 12784 | -8/Materials | Identified exit to Garrison 12784 | -8/Materials | Entered Garrison 12819 | -8/Garrison | Expanded RIF knowledge: Threat Obfuscation 12845 | -8/Garrison | Triggered checkpoint 12876 | -8/Garrison | Garrison Relay disabled 12993 | -8/Garrison | Triggered checkpoint 12996 | -8/Garrison | Triggered checkpoint 13021 | -8/Garrison | Core integrity fell below 50% 13061 | -8/Garrison | Destroyed 10 combat bots 13094 | -8/Garrison | Lost 3 parts (1p1u1w) 13122 | -8/Garrison | Build established: Botlord-Mutant 13212 | -8/Garrison | Triggered checkpoint 13254 | -8/Garrison | Triggered checkpoint 13366 | -8/Garrison | Lost 5 parts (2n2u1w) 13394 | -8/Garrison | Garrison Relay disabled 13503 | -8/Garrison | Discovered new exit (range 10) 13606 | -8/Garrison | Spotted B-75 Beast 13606 | -8/Garrison | Spotted B-75 Beast 13753 | -8/Garrison | Entered Factory 13753 | -7/Factory | Evolved 2 slots: Utility x1, Weapon x1 13934 | -7/Factory | Identified exit to DSF 13936 | -7/Factory | Entered DSF 13992 | -7/DSF | Additional patrols routed to DSF 14003 | -7/DSF | Discovered new exit (range 15) 14221 | -7/DSF | Sterilization system engaged 14241 | -7/DSF | Ambient heat levels rising (+10) 14256 | -7/DSF | Ambient heat levels rising (+10) 14271 | -7/DSF | Ambient heat levels rising (+10) 14286 | -7/DSF | Ambient heat levels rising (+10) 14287 | -7/DSF | Entered Factory 14287 | -6/Factory | Accompanied by 1 ally 14287 | -6/Factory | Evolved 2 slots: Utility x2 14356 | -6/Factory | Build established: Botlord-Gunner 15378 | -6/Factory | Discovered new exit (range 15) 15519 | -6/Factory | Identified exit to Lower Caves 15534 | -6/Factory | Build established: Botlord-Mutant 16031 | -6/Factory | Entered Lower Caves 16047 | -6/Lower Caves | Spotted B-75 Beast 16547 | -6/Lower Caves | Attracted the attention of an 0b10 checkpoint 16684 | -6/Lower Caves | Build established: Botlord-Gunner 16841 | -6/Lower Caves | Lost 4 parts (3n1u) 16842 | -6/Lower Caves | Learned Factory security intel 17703 | -6/Lower Caves | Build established: Botlord-Mutant 18224 | -6/Lower Caves | Discovered new exit (range 15) 18462 | -6/Lower Caves | Entered another Lower Caves area 18538 | -6/Lower Caves | Discovered new exit (range 6) 19164 | -6/Lower Caves | Discovered new exit (range 5) 19405 | -6/Lower Caves | Entered Data Miner 19405 | -6/Data Miner | Discovered new exit (range 6) 19434 | -6/Data Miner | Met Data Miner 19468 | -6/Data Miner | Learned location of Section 7 (-2) 19468 | -6/Data Miner | Acquired the access code to Warlord's prototype stash 19495 | -6/Data Miner | Received God Mode back door access code from Data Miner 19551 | -6/Data Miner | Entered Proximity Caves 19689 | -5/Proximity Caves | Spotter reported a threat 19722 | -5/Proximity Caves | Attracted the attention of an 0b10 base 19740 | -5/Proximity Caves | Lost 3 parts (1p2u) 19751 | -5/Proximity Caves | Learned Armory security intel 20015 | -5/Proximity Caves | Build established: Botlord-Gunner 20033 | -5/Proximity Caves | Spotter reported a threat 20348 | -5/Proximity Caves | Discovered new exit (range 15) 20370 | -5/Proximity Caves | Learned location of 1 exit from Upper Caves 20388 | -5/Proximity Caves | Spotted B-75 Beast 20495 | -5/Proximity Caves | Entered Factory 20495 | -5/Factory | Accompanied by 2 allies 20495 | -5/Factory | Evolved 2 slots: Propulsion x2 20845 | -5/Factory | Fabricated Adv. Remote Datajack? 21018 | -5/Factory | Garrison activated, responded to threat 21039 | -5/Factory | P-70 Sage assimilated allied Smith 6a 21113 | -5/Factory | Lost 7 parts (1p5n1w) 21118 | -5/Factory | Sucked down chute 21118 | -5/Factory | Entered Waste 21119 | -5/Waste | Joined by Warlord forces that had cleared the area 21133 | -5/Waste | 1 allies followed down the chute 21284 | -5/Waste | Discovered new exit (range 16) 21614 | -5/Waste | Build established: Botlord-Mutant 21638 | -5/Waste | A Compactor rumbled back to life 21638 | -5/Waste | Spotted C-40 Crusher 21658 | -5/Waste | Allies destroyed C-40 Crusher 21754 | -5/Waste | Entered Factory 21754 | -5/Factory | Accompanied by 21 allies 22039 | -5/Factory | Spotted B-75 Beast 22050 | -5/Factory | Allies destroyed B-75 Beast 22054 | -5/Factory | First assault squad dispatched 22079 | -5/Factory | Lost 6 allies 22111 | -5/Factory | P-70 Sage assimilated allied S4-NOG(d) 22157 | -5/Factory | Garrison activated, responded to threat 22212 | -5/Factory | Identified exit to Upper Caves 22212 | -5/Factory | Identified exit to Extension 22271 | -5/Factory | Garrison activated, responded to threat 22336 | -5/Factory | Entered Upper Caves 22336 | -5/Upper Caves | Accompanied by 10 allies 22337 | -5/Upper Caves | Identified exit to Upper Caves 22338 | -5/Upper Caves | Attracted the attention of an 0b10 outpost 22780 | -5/Upper Caves | Build established: Botlord-Tank 22908 | -5/Upper Caves | Attacked by a delusional Derelict stockpiling parts 22947 | -5/Upper Caves | Entered another Upper Caves area 22947 | -5/Upper Caves | Accompanied by 5 allies 22948 | -5/Upper Caves | Identified exit to Warlord 22983 | -5/Upper Caves | Spotted B-75 Beast 23066 | -5/Upper Caves | Attracted the attention of an 0b10 checkpoint 23480 | -5/Upper Caves | Entered Warlord 23480 | -5/Warlord | Accompanied by 5 allies 23536 | -5/Warlord | System corruption cleaned by Quarantine Array 23551 | -5/Warlord | RIF detected upon attempting to enter Warlord's base 23551 | -5/Warlord | Attacked by Warlord forces 23589 | -5/Warlord | Spotted 80-T34(B) 23589 | -5/Warlord | Spotted MT-QAC(B) 23653 | -5/Warlord | Discovered new exit (range 12) 23691 | -5/Warlord | Destroyed MT-QAC(B) 23698 | -5/Warlord | Destroyed 80-T34(B) 23701 | -5/Warlord | Warlord's base attacked by MAIN.C 23713 | -5/Warlord | Entered Proximity Caves 23713 | -4/Proximity Caves | Accompanied by 2 allies 23896 | -4/Proximity Caves | Core integrity fell below 50% 24017 | -4/Proximity Caves | Build established: Botlord-Gunner 24286 | -4/Proximity Caves | Identified exit to Factory 24669 | -4/Proximity Caves | Spotted B-86 Titan 24747 | -4/Proximity Caves | Destroyed B-86 Titan 24770 | -4/Proximity Caves | Lost 7 parts (1p1n5u) 24771 | -4/Proximity Caves | Attracted the attention of an 0b10 checkpoint 24802 | -4/Proximity Caves | Core integrity fell below 20% 24814 | -4/Proximity Caves | Released all parts (2) 24844 | -4/Proximity Caves | Released all parts (1) 24847 | -4/Proximity Caves | Destroyed by G-67 Veteran with Field Laser Last Messages --------------- 24811_ The unstable cave ceiling collapses. 24812_ Imp. Cooling System destroyed. 24812_ Slug penetrates G-73 Enforcer. 24812_ G-73 Enforcer destroyed. 24813_ Coil Gun destroyed. 24814_ Released Huge Storage Unit. 24814_ Released Relay Coupler [Brawler]. 24815_ Acquired Railgun. 24818_ Acquired Imp. Medium Armor Plating. 24819_ Railgun destroyed. 24820_ Acquired 1 matter. 24824_ Acquired KE Penetrator. 24826_ Slug penetrates G-67 Veteran. 24836_ Acquired 6 matter. 24838_ Acquired 31 matter. 24840_ Slug penetrates Wall. 24842_ Slug penetrates G-67 Veteran. 24844_ Imp. Medium Armor Plating destroyed. 24844_ Released KE Penetrator. 24847_ Critical hit (Burn: +37). Map ----- +----------------------------------------------------+ | | | | | | | ?????????????????????????????????????????????????? | | ?????????????????????????????????????????????????? | | ?????????????????????????????????????????????????? | | ?????????????????????????????????????????????????? | | ?????????????????????????????????????????????????? | | ?????????????????????????????????????????????????? | | ?????????????????????????????????????????????????? | | ?????????????????????????????????????????????????? | | ?????????????????????????????????????????????????? | | ?????????????????????????????????????????????????? | | ?????????????????????????????????????????????????? | | ?????????????????????????????????????????????????? | | ?????????????????????????????????????????????????? | | ?????????????????????????????????????????????????? | | ?????????????????????##?###??????????###?????????? | | ????????????????????## ?? #####??### ##????????? | | ????????????????????# ??# ;### #????????? | | ????????????????????# ?## ! #?????????? | | ????????????# ?????# ## !|] #??????????? | | ?????????????# ### |!!! ##??????????? | | ?????????????# /! % #??????????? | | ?????????????? *! =g #??????????? | | ??????????????? ########@ [ #??????????? | | ????????????????????????# ##??????????? | | ???????????????????????## #????????? | | ??????????????????????## #????????? | | ????????????????##????#" ## ?????? | | ?#??????? ?????# #?#### ## #????? | | ? ### ##??? ## ##? #????? | | ? #??# #;## ##?? #????? | | ? ##?# ;# # ###??? ?????? | | ? ## #? # #?????? ?????? | | ## ### ??## #?????? ??????? | | # ???## ## ???# #??????#? # ??????? | | # ?? ????# ###????# #??????????#????????? | | # #?##" #????# #?#??### #???????????????????? | | # ###" #????# #?# ## #???????????????????? | | # " " #???## #?# ###???????????????????? | | # " "" #??## #?#### #?????????????????????? | | """"" ##?# ! ###### #?????????????????????? | | """"" ### #?????????????????????? | | " ## #?????????????????????? | | " ########?????????????????????? | | """ "" ### ##????????????????????????????? | | ""### #?# ##?????????????????????????????? | | "##?# #?#####??????????????????????????????? | | #???????????????????????????????????? | +----------------------------------------------------+ Best States ------------- Heat Dissipation 67 Energy Generation 21 Energy Capacity 325 Matter Stores 300 Matter Capacity 300 Sight Range 16 Robot Scan Range 15 Terrain Scan Range 16 Terrain Scan Density 10 Armor Coverage 600 Resistance: KI 20 Core Shielding 30 Weapon Shielding 66 Weapon Cycling 15 Evasion (%) 40 Targeting Accuracy 8 Core Analysis 6 Recoil Reduction 6 Energy Filtering 50 Particle Charging 20 Kinecelleration 30 Offensive Hacking 20 Relay Coupler Types 4 Relay Coupler Value 60 Item Schematics ----------------- Adv. Visual Processing Unit | -9/Storage | Hacked Combat Drone Bay | -6/Data Miner | Free Imp. Thermal Defense Suite | -6/Data Miner | Free Lgt. Regenerative Plating | -6/Data Miner | Free Cld. Nuclear Pulse Thruster | -6/Data Miner | Free Hvy. Disruptor Cannon | -6/Data Miner | Free Imp. KE Penetrator | -6/Data Miner | Free Field Propulsion Array | -6/Data Miner | Free Adv. Transmission Jammer | -6/Data Miner | Free Adv. Shield Generator | -6/Data Miner | Free Robot Schematics ------------------ R-10 Processor | -6/Data Miner | Free G-50 Soldier | -6/Data Miner | Free A-15 Conveyor | -6/Data Miner | Free O-32 Director | -6/Data Miner | Free M-22 Extractor | -6/Data Miner | Free Fabricated ------------ Adv. Remote Datajack | x1 | -5/Factory | Preloaded Alien Tech Used ----------------- None Achievements -------------- Assimilation Complete Infiltrator Challenges ------------ None Game ------ Seed ReflectiveClaymoresScrap Manual? 0 Play Time 03:56:14 Cumulative 74.6 hours Start 2024.05.04 @ 17:53:38 End 2024.05.05 @ 21:17:59 Sessions 5 Manual Loads 0 Difficulty Rogue Special Mode None Game No. 38 Rogue 38 Adventurer 0 Explorer 0 Win Type - Total 0 Types 0/0/0/0/0/0/0/0/0 Lore% 42 Gallery% 55 Achievement% 42 Wizard Run 0 Options --------- Layout 1 ASCII 0 Keyboard 0 Movement Mouse Keybinds 0 Fullscreen 1 Font 24/Smallcaps Map View 50x35 Zoom Use 0% Tactical HUD 1 Map Filters NONE Filters NONE Steam 1 RUN: 603c0f9d-618f-4217-bf6a-68cccbf6b562